bitfinex-derivatives/quotes_ETHF0:USTF0_20240923
["timestamp","ask_amount","ask_price","bid_price","bid_amount"]
[1727059285652,0.38017,2630.3,2629.9,0.38022]
[1727059285853,3.2078,2630.4,2630.0,0.3802]
[1727059286150,3.2078,2630.4,2629.8,3.66410843]
[1727059286343,3.2078,2630.7,2629.8,3.66410843]
[1727059286752,3.58791,2630.7,2630.3,0.38016]
[1727059287460,3.2078,2630.7,2630.2,0.38017]
[1727059287754,0.38012,2630.6,2630.2,0.38017]
[1727059288053,3.2078,2630.7,2630.2,3.66410843]
[1727059288260,0.38012,2630.6,2630.2,4.04427843]
[1727059288649,3.2078,2630.7,2630.2,3.66410843]
[1727059289160,3.2078,2630.7,2630.6,0.38012]
[1727059289359,3.2078,2630.7,2630.5,0.38012]
[1727059289561,3.2078,2630.7,2630.3,4.62625843]
[1727059289759,0.38012,2630.6,2630.3,4.62625843]
[1727059289951,0.38015,2630.4,2630.3,3.66410843]
[1727059290450,0.38015,2630.4,2630.0,0.3802]
[1727059290451,4.18175,2630.4,2630.0,0.3802]
[1727059290656,4.18175,2630.4,2629.5,4.15847]
[1727059290657,0.38016,2630.3,2629.9,0.38021]
[1727059290866,3.2078,2630.4,2629.6,7.95561772]
[1727059291059,0.38022,2629.9,2629.6,8.33586772]
[1727059291354,3.2078,2630.1,2630.0,0.3802]
[1727059291750,3.2078,2630.1,2630.0,4.04430843]
[1727059292150,3.2078,2630.1,2630.0,3.66410843]
[1727059292351,3.2078,2630.1,2630.0,4.04430843]
[1727059292850,3.2078,2630.1,2630.0,3.66410843]
[1727059293047,0.38021,2630.0,2629.7,0.38024]
[1727059293251,3.588,2630.1,2629.7,0.38024]
[1727059293462,3.2078,2630.1,2629.7,3.66410843]
[1727059293659,0.38021,2630.0,2629.7,3.66410843]
[1727059293957,3.2078,2630.1,2629.5,0.38027]
[1727059294158,0.38022,2629.9,2629.6,0.38025]
[1727059294559,0.38024,2629.8,2629.6,3.66410843]
[1727059294748,3.2078,2630.1,2629.6,3.66410843]
[1727059294955,0.38025,2629.7,2629.6,3.66410843]
[1727059295158,0.38033,2629.1,2628.5,3.2078]
[1727059295474,3.2078,2629.2,2628.6,0.95102]
[1727059295662,0.3803,2629.4,2628.5,6.87190843]
[1727059295855,0.3803,2629.4,2629.1,0.38033]
[1727059296359,3.8032,2629.3,2628.4,0.95107]
[1727059296560,3.82931144,2631.1,2628.4,0.95107]
[1727059296763,18.99313,2632.4,2628.4,0.95107]
[1727059296956,18.99313,2632.4,2628.2,4.74814]
[1727059296957,6.45757569,2635.7,2632.4,0.37985]
[1727059296958,2.9579165,2634.8,2632.4,0.37985]
[1727059297155,3.94352868,2635.7,2632.4,0.37985]
[1727059297156,3.2078,2634.5,2633.2,3.2078]
[1727059297368,3.4993,2635.6,2633.2,3.2078]
[1727059297369,3.2078,2634.2,2633.7,1.33503955]
[1727059297557,0.5994,2635.0,2633.2,3.66410843]
[1727059297753,3.2078,2634.6,2633.6,1.33503955]
[1727059297955,3.2078,2634.3,2633.3,1.33503955]
[1727059298161,3.2078,2634.0,2633.3,1.33503955]
[1727059298461,0.6293,2634.2,2633.7,1.33503955]
[1727059298652,0.6293,2634.2,2633.9,1.33503955]
[1727059299655,3.7968,2634.1,2633.2,3.2078]
[1727059299859,0.6293,2634.2,2633.9,1.33503955]
[1727059300858,0.6293,2634.2,2633.2,3.2078]
[1727059300859,3.2078,2634.0,2633.2,3.2078]
[1727059301064,3.2078,2634.0,2633.4,0.38903955]
[1727059301461,3.2078,2634.0,2632.7,2.87]
[1727059301462,3.2078,2633.5,2632.5,3.2078]
[1727059301661,3.2078,2633.5,2633.1,0.38903955]
[1727059302459,3.2078,2633.5,2633.1,4.05314798]
[1727059303467,0.6293,2634.2,2633.6,0.37967]
[1727059303671,0.6293,2634.2,2633.9,0.38903955]
[1727059303868,40.8,2634.1,2633.9,0.76866955]
[1727059304071,40.8,2634.1,2633.9,0.38903955]
[1727059304569,40.8,2634.1,2634.0,0.38903955]
[1727059305066,2.87,2635.1,2634.0,0.38903955]
[1727059305067,3.2078,2635.2,2634.0,13.26094798]
[1727059305268,3.2078,2635.2,2634.6,0.38903955]
[1727059305473,40.8,2635.0,2634.8,0.38903955]
[1727059307065,40.8,2635.0,2634.0,3.2078]
[1727059307372,40.8,2635.0,2634.1,0.3796]
[1727059307569,40.8,2635.0,2634.2,0.3796]
[1727059308063,40.8,2635.0,2634.2,4.04370843]
[1727059308467,40.8,2635.0,2634.3,0.37958]
[1727059308867,40.8,2635.0,2634.3,4.04368843]
[1727059309568,40.8,2635.0,2634.3,6.87190843]
[1727059309771,40.8,2635.0,2634.6,0.37953]
[1727059309965,40.8,2635.0,2634.6,3.66410843]
[1727059311165,3.7952,2634.9,2634.3,3.58738]
[1727059311460,40.8,2635.0,2634.4,0.37956]
[1727059311872,40.8,2635.0,2634.5,0.37954]
[1727059312071,40.8,2635.0,2634.7,0.37951]
[1727059312273,40.8,2635.0,2634.3,3.2078]
[1727059312573,40.8,2635.0,2634.3,6.87190843]
[1727059312873,40.8,2635.0,2634.7,0.37952]
[1727059313063,0.5991,2635.5,2634.9,3.2078]
[1727059313268,0.629,2636.0,2635.3,3.2078]
[1727059313581,40.8,2636.0,2635.9,0.37935]
[1727059313970,40.8,2636.0,2635.7,3.2078]
[1727059314167,40.8,2636.0,2635.8,0.37936]
[1727059314380,40.8,2636.0,2635.8,3.66410843]
[1727059314673,40.8,2636.0,2635.9,0.37935]
[1727059315063,40.8,2636.0,2635.9,4.04345843]
[1727059315475,1.43125221,2636.7,2635.7,3.2078]
[1727059315670,1.43125221,2636.7,2635.4,3.58722]
[1727059315671,0.37932,2636.2,2635.4,3.58722]
[1727059315870,0.37933,2636.1,2635.4,3.2078]
[1727059316080,0.37932,2636.2,2635.4,2.15202843]
[1727059316374,3.81822,2636.4,2635.4,1.77260843]
[1727059316580,40.8,2636.0,2635.4,1.77260843]
[1727059316875,41.17934,2636.0,2635.0,3.2078]
[1727059317076,41.17934,2636.0,2635.0,4.98040843]
[1727059317279,41.17934,2636.0,2635.2,0.37944]
[1727059317574,41.17934,2636.0,2635.0,4.98040843]
[1727059317575,43.67,2636.0,2635.0,4.98040843]
[1727059317777,43.67,2636.0,2634.4,3.58736]
[1727059317778,6.0778,2635.7,2634.4,3.58736]
[1727059317970,0.37946,2635.2,2634.5,0.37955]
[1727059318170,3.2078,2635.4,2634.5,0.37955]
[1727059318387,0.37946,2635.2,2634.5,2.15215843]
[1727059318572,0.37948,2635.1,2634.5,1.77260843]
[1727059318878,0.37946,2635.2,2634.5,2.15215843]
[1727059319175,0.37946,2635.2,2634.6,0.37954]
[1727059319569,0.37946,2635.2,2634.6,2.15214843]
[1727059320574,0.6245,2635.3,2634.6,1.77260843]
[1727059320780,1.00395,2635.3,2634.7,0.37952]
[1727059320981,0.6245,2635.3,2634.6,1.77260843]
[1727059321174,0.6245,2635.3,2634.9,0.3795]
[1727059321578,0.6245,2635.3,2634.9,2.15210843]
[1727059321877,6.0778,2635.0,2633.4,3.2078]
[1727059322077,3.2078,2634.0,2633.1,3.2078]
[1727059322277,0.37968,2633.7,2632.8,4.98040843]
[1727059322583,41.17969,2633.6,2632.9,0.37979]
[1727059322779,41.17969,2633.6,2632.9,1.77260843]
[1727059322969,3.2078,2633.5,2632.9,1.77260843]
[1727059323281,3.2078,2633.5,2633.1,0.37975]
[1727059323470,3.2078,2633.5,2633.0,0.37976]
[1727059323673,3.2078,2633.5,2632.9,1.77260843]
[1727059323872,3.2078,2633.5,2633.0,0.37977]
[1727059324380,3.2078,2633.5,2633.0,2.15237843]
[1727059325184,3.5875,2633.5,2633.0,1.77260843]
[1727059325583,3.2078,2633.5,2633.1,0.37976]
[1727059325882,3.2078,2633.5,2633.0,2.15236843]
[1727059326283,3.2078,2633.5,2633.0,1.77260843]
[1727059326785,3.2078,2634.3,2633.4,3.2078]
[1727059326987,0.37963,2634.0,2633.1,3.2078]
[1727059327288,41.17964,2633.9,2633.4,0.3797]
[1727059327475,40.8,2633.9,2633.1,4.98040843]
[1727059327676,40.8,2633.9,2633.6,0.37968]
[1727059328281,40.8,2633.9,2633.6,2.15228843]
[1727059328875,40.8,2633.9,2633.7,0.37967]
[1727059329072,40.8,2633.9,2633.8,0.37966]
[1727059329276,0.37959,2634.3,2633.8,5.94905843]
[1727059329482,0.37961,2634.2,2633.8,1.77260843]
[1727059329687,40.8,2634.1,2633.9,0.37963]
[1727059329882,40.8,2634.1,2633.8,1.77260843]
[1727059330081,0.37963,2634.0,2633.8,1.77260843]
[1727059330287,0.37964,2633.9,2633.8,1.77260843]
[1727059330587,41.17962,2634.1,2633.8,1.77260843]
[1727059331585,1.2288,2634.8,2634.1,0.3796]
[1727059331586,4.4366,2634.8,2634.1,0.3796]
[1727059331787,4.4366,2634.8,2633.9,0.37963]
[1727059331788,0.37959,2634.3,2633.9,0.37963]
[1727059331983,0.94882,2634.7,2633.8,1.77260843]
[1727059332185,0.37959,2634.3,2633.9,0.37963]
[1727059332790,0.37959,2634.3,2633.9,2.15223843]
[1727059333092,3.2078,2634.5,2633.9,2.15223843]
[1727059333093,3.2078,2634.5,2633.9,1.77260843]
[1727059333284,0.37963,2634.0,2633.9,1.77260843]
[1727059333787,0.3797,2633.5,2633.2,3.2078]
[1727059333985,0.94914,2633.9,2633.2,4.98040843]
[1727059333986,3.2078,2633.9,2633.2,4.98040843]
[1727059334184,4.7678,2634.5,2633.2,1.77260843]
[1727059334185,0.37972,2633.4,2633.2,1.77260843]
[1727059334385,0.37973,2633.3,2633.2,1.77260843]
[1727059335081,0.37972,2633.4,2633.2,1.77260843]
[1727059335282,3.2078,2633.7,2633.2,1.77260843]
[1727059335485,0.37972,2633.4,2633.2,1.77260843]
[1727059335689,3.2078,2633.7,2633.2,1.77260843]
[1727059335887,0.37969,2633.6,2633.2,1.77260843]
[1727059336090,0.37969,2633.6,2633.2,2.15234843]
[1727059336483,3.2078,2633.7,2633.2,1.77260843]
[1727059336679,0.37974,2633.3,2633.2,1.77260843]
[1727059337085,0.3797,2633.5,2633.2,1.77260843]
[1727059337584,0.37972,2633.4,2633.2,1.77260843]
[1727059337789,40.8,2633.3,2633.2,1.77260843]
[1727059338585,41.17973,2633.3,2633.2,1.77260843]
[1727059338785,40.8,2633.3,2633.2,1.77260843]
[1727059338979,41.17973,2633.3,2633.2,1.77260843]
[1727059339800,42.12906,2633.3,2633.2,1.77260843]
[1727059340088,0.9495,2632.9,2632.0,3.2078]
[1727059340390,4.15737,2632.7,2632.0,2.15251843]
[1727059340694,4.15737,2632.7,2632.0,1.77260843]
[1727059340695,0.37989,2632.2,2632.0,1.77260843]
[1727059340886,0.3799,2632.1,2632.0,1.77260843]
[1727059341194,0.37996,2631.7,2631.6,0.5854]
[1727059341392,3.2078,2632.1,2631.6,1.77260843]
[1727059341596,0.37987,2632.3,2631.6,1.77260843]
[1727059342094,0.37987,2632.3,2631.9,0.37992]
[1727059342396,3.2078,2632.7,2631.8,0.37994]
[1727059342581,3.2078,2632.7,2632.0,0.37991]
[1727059342582,0.37987,2632.4,2632.0,0.37991]
[1727059342888,3.2078,2632.7,2632.0,0.37991]
[1727059343089,0.37988,2632.3,2632.0,1.77260843]
[1727059343283,41.17988,2632.3,2632.0,2.15251843]
[1727059343481,40.8,2632.3,2632.0,1.77260843]
[1727059343894,0.3799,2632.1,2632.0,1.77260843]
[1727059347893,3.2078,2632.7,2632.0,5.57180843]
[1727059348093,3.2078,2632.7,2632.0,1.77260843]
[1727059348094,3.58762,2632.7,2632.0,1.77260843]
[1727059348297,3.58762,2632.7,2632.4,0.37986]
[1727059348489,44.38762,2632.7,2632.4,0.37986]
[1727059348790,44.38762,2632.7,2632.4,1.77260843]
[1727059348997,0.37983,2632.6,2632.4,1.77260843]
[1727059349402,0.37984,2632.5,2632.4,1.77260843]
[1727059349590,44.95735,2632.7,2632.0,0.37991]
[1727059349591,0.37988,2632.3,2632.0,0.37991]
[1727059350095,0.37988,2632.3,2632.0,2.15251843]
[1727059350299,0.37989,2632.2,2632.0,1.77260843]
[1727059350593,0.3799,2632.1,2632.0,1.77260843]
[1727059350798,0.94976,2632.1,2631.5,3.2078]
[1727059351000,0.37995,2631.8,2631.5,1.77260843]
[1727059351197,4.15756,2632.1,2631.5,1.77260843]
[1727059351198,0.37996,2631.7,2631.5,1.77260843]
[1727059351599,4.15756,2632.1,2631.5,1.77260843]
[1727059351600,0.37995,2631.8,2631.5,1.77260843]
[1727059352590,0.37996,2631.7,2631.5,1.77260843]
[1727059352894,3.2078,2632.5,2631.6,3.8]
[1727059353094,0.37986,2632.4,2632.0,0.3799]
[1727059353295,0.37986,2632.4,2632.0,1.77260843]
[1727059353497,3.58765,2632.5,2632.1,0.37989]
[1727059353697,3.58765,2632.5,2632.0,1.77260843]
[1727059353899,3.58765,2632.5,2632.1,0.37989]
[1727059354302,3.58765,2632.5,2632.1,2.15249843]
[1727059354497,0.37986,2632.4,2632.1,2.15249843]
[1727059354689,3.2078,2632.5,2632.1,1.77260843]
[1727059354890,3.58765,2632.5,2632.1,2.15249843]
[1727059355095,3.58765,2632.5,2632.1,1.77260843]
[1727059355096,3.2078,2632.5,2632.1,1.77260843]
[1727059355305,0.37991,2632.1,2631.3,3.7932]
[1727059355507,3.2078,2632.5,2631.8,0.37993]
[1727059355706,0.3799,2632.1,2631.8,0.37993]
[1727059355911,0.3799,2632.1,2631.8,1.77260843]
[1727059356209,0.94968,2632.4,2631.8,1.77260843]
[1727059356406,0.37992,2632.0,2631.8,1.77260843]
[1727059356608,0.37993,2631.9,2631.8,1.77260843]
[1727059357514,3.2078,2632.2,2631.3,3.7932]
[1727059357704,3.2078,2632.2,2631.3,1.77260843]
[1727059357911,0.38,2631.5,2631.3,1.77260843]
[1727059358408,41.18,2631.4,2631.3,1.77260843]
[1727059358815,0.38002,2631.3,2630.7,1.2128]
[1727059359007,0.38002,2631.3,2631.0,0.38005]
[1727059359215,0.38002,2631.3,2631.1,0.38004]
[1727059359403,0.38004,2631.2,2630.9,0.38007]
[1727059359806,40.8,2631.4,2630.9,1.77260843]
[1727059360002,40.8,2631.4,2631.2,0.38002]
[1727059360205,40.8,2631.4,2631.2,4.18082]
[1727059360416,40.8,2631.4,2631.2,5.95342843]
[1727059360712,0.37999,2631.5,2631.2,5.95342843]
[1727059360915,0.37997,2631.6,2631.3,0.38001]
[1727059361116,0.37997,2631.6,2631.2,1.77260843]
[1727059361117,40.8,2631.6,2631.2,1.77260843]
[1727059361414,0.37995,2631.8,2631.2,1.77260843]
[1727059361611,0.37995,2631.8,2631.5,0.37998]
[1727059361804,41.17996,2631.7,2631.4,0.37999]
[1727059362212,41.17996,2631.7,2631.4,2.15259843]
[1727059362711,41.17996,2631.7,2631.4,2.15260843]
[1727059362712,41.17997,2631.7,2631.4,2.15260843]
[1727059363214,40.8,2631.7,2630.9,3.2078]
[1727059363512,40.8,2631.7,2630.9,4.98040843]
[1727059363711,0.37998,2631.6,2631.3,0.38001]
[1727059363917,0.94995,2631.6,2630.9,4.98040843]
[1727059364312,0.94995,2631.6,2631.0,0.38005]
[1727059364313,0.38002,2631.3,2631.0,0.38005]
[1727059364711,0.38002,2631.3,2631.0,2.15265843]
[1727059365215,0.94998,2631.5,2631.0,2.15266843]
[1727059365518,0.38003,2631.3,2631.0,2.15266843]
[1727059366322,3.2078,2631.6,2631.1,0.38004]
[1727059366824,0.38001,2631.4,2631.1,2.15264843]
[1727059367418,3.2078,2631.6,2631.1,1.77260843]
[1727059367419,0.38002,2631.3,2631.1,1.77260843]
[1727059367818,0.38002,2631.3,2631.1,2.15264843]
[1727059368021,3.2078,2631.6,2631.1,1.77260843]
[1727059368220,3.2078,2631.6,2631.4,0.38]
[1727059368416,3.58777,2631.6,2631.4,0.38]
[1727059368720,3.2078,2631.6,2631.4,2.15260843]
[1727059369016,3.58777,2631.6,2631.4,1.77260843]
[1727059369817,0.37999,2631.5,2631.4,1.77260843]
[1727059370013,3.2078,2631.6,2631.4,1.77260843]
[1727059370214,3.58778,2631.6,2631.4,1.77260843]
[1727059370426,0.37999,2631.5,2631.4,1.77260843]
[1727059372025,0.38003,2631.3,2630.7,0.6252]
[1727059372222,0.38003,2631.3,2630.7,2.39780843]
[1727059372427,0.38003,2631.2,2630.9,0.38006]
[1727059372617,0.38002,2631.3,2631.0,0.38006]
[1727059373015,0.38002,2631.3,2631.0,2.15266843]
[1727059373527,0.38002,2631.3,2631.0,1.77260843]
[1727059373723,0.38002,2631.3,2631.0,2.15265843]
[1727059374022,0.38001,2631.4,2631.1,0.38004]
[1727059374421,0.38001,2631.4,2631.1,2.15264843]
[1727059375225,4.15776,2631.6,2631.1,1.77260843]
[1727059375427,0.38002,2631.3,2631.1,1.77260843]
[1727059375623,0.95,2631.5,2631.1,1.77260843]
[1727059375817,0.38,2631.4,2631.1,2.15264843]
[1727059376920,0.38002,2631.3,2631.1,1.77260843]
[1727059377118,0.38003,2631.2,2631.1,1.77260843]
[1727059378417,3.8008,2631.2,2630.6,3.2078]
[1727059378618,0.38004,2631.2,2630.9,0.38007]
[1727059378821,4.15776,2631.6,2630.6,4.98040843]
[1727059379018,0.38001,2631.4,2631.1,0.38004]
[1727059379218,3.2078,2631.6,2630.7,0.95026]
[1727059379428,0.37999,2631.5,2631.3,0.38001]
[1727059379826,0.37999,2631.5,2631.3,2.15261843]
[1727059380325,0.37999,2631.5,2631.3,1.77260843]
[1727059380535,0.38,2631.4,2631.3,1.77260843]
[1727059380828,0.38,2631.5,2631.3,1.77260843]
[1727059381031,0.38,2631.4,2631.3,1.77260843]
[1727059381520,0.38,2631.4,2631.0,0.38005]
[1727059381521,0.38003,2631.3,2631.0,0.38005]
[1727059381728,0.38003,2631.3,2631.0,2.15265843]
[1727059382226,3.2078,2631.6,2631.0,1.77260843]
[1727059382629,3.2078,2631.6,2631.1,0.38004]
[1727059382630,0.38001,2631.4,2631.1,0.38004]
[1727059383035,0.38001,2631.4,2631.1,1.77260843]
[1727059383326,3.2078,2631.6,2631.1,1.77260843]
[1727059383626,0.38001,2631.4,2631.1,2.15264843]
[1727059383926,0.38,2631.5,2631.1,1.77260843]
[1727059384120,0.38,2631.5,2631.1,2.15264843]
[1727059384323,0.38,2631.5,2631.1,3.12062771]
[1727059384523,0.38,2631.5,2631.2,0.38003]
[1727059384925,0.38,2631.5,2631.2,2.15263843]
[1727059385420,3.2078,2631.6,2631.2,1.77260843]
[1727059385625,0.38003,2631.2,2631.1,0.96797928]
[1727059385828,0.38003,2631.2,2630.9,0.96797928]
[1727059386025,0.38005,2631.1,2630.9,1.77260843]
[1727059386223,3.2078,2631.3,2630.7,0.96797928]
[1727059386427,0.3801,2630.7,2630.6,0.96797928]
[1727059386631,0.95019,2630.9,2630.4,0.96797928]
[1727059386829,0.38015,2630.4,2630.3,1.77260843]
[1727059387023,41.18015,2630.4,2630.3,1.77260843]
[1727059387226,0.38018,2630.2,2630.1,0.96797928]
[1727059387427,0.38019,2630.1,2630.0,0.96797928]
[1727059387627,0.3802,2630.1,2629.8,0.96797928]
[1727059387929,0.3802,2630.1,2629.8,2.9307177]
[1727059388325,0.38021,2630.0,2629.8,1.58250842]
[1727059388726,0.38023,2629.8,2629.6,0.96797928]
[1727059388926,2.56,2630.1,2629.5,2.5504877]
[1727059389122,0.38021,2630.0,2629.7,0.38024]
[1727059389332,3.2078,2630.3,2629.5,1.58250842]
[1727059389532,0.38025,2629.7,2629.5,1.58250842]
[1727059389925,3.2078,2630.0,2629.5,1.58250842]
[1727059390127,0.38025,2629.7,2629.5,1.58250842]
[1727059390530,0.38026,2629.6,2629.5,1.58250842]
[1727059390736,0.38025,2629.7,2629.4,0.38029]
[1727059390927,3.2078,2630.0,2629.5,0.38027]
[1727059390928,0.38024,2629.8,2629.5,0.38027]
[1727059391129,0.38025,2629.7,2629.4,0.38029]
[1727059391535,0.38025,2629.7,2629.4,1.96279842]
[1727059391831,0.38026,2629.7,2629.4,1.58250842]
[1727059392029,0.38027,2629.6,2629.4,1.58250842]
[1727059392235,3.2078,2630.0,2629.4,1.96278842]
[1727059392435,3.2078,2630.0,2629.4,1.58250842]
[1727059392632,4.72601603,2651.1,2629.9,3.2078]
[1727059392633,3.2078,2631.0,2629.9,3.2078]
[1727059392932,0.94995,2631.6,2630.1,4.17577928]
[1727059392933,0.38013,2630.5,2630.1,4.17577928]
[1727059393142,0.38014,2630.5,2629.9,1.58250842]
[1727059393433,0.9503,2630.6,2629.9,1.58250842]
[1727059393631,40.8,2630.5,2629.9,1.58250842]
[1727059393835,0.95037,2630.4,2629.9,1.58250842]
[1727059394030,44.0078,2630.5,2629.9,1.58250842]
[1727059394330,44.38794,2630.5,2630.1,0.38018]
[1727059394540,3.2078,2630.5,2630.2,0.38017]
[1727059394828,3.2078,2630.5,2629.9,1.58250842]
[1727059395034,41.18015,2630.4,2630.0,0.3802]
[1727059395231,0.38017,2630.3,2629.9,1.96271842]
[1727059395430,0.38018,2630.2,2629.9,1.58250842]
[1727059396223,40.8,2630.4,2629.9,1.58250842]
[1727059396433,0.3802,2630.1,2629.9,1.58250842]
[1727059396829,3.8024,2630.1,2629.3,3.9117]
[1727059397033,3.2078,2630.2,2629.3,5.49420842]
[1727059397242,0.38021,2630.0,2629.3,5.49420842]
[1727059397638,0.38021,2630.0,2629.6,0.38025]
[1727059397832,0.38021,2630.0,2629.6,1.96275842]
[1727059398738,0.38022,2629.9,2629.6,1.96275842]
[1727059399541,0.38022,2629.9,2629.6,1.58250842]
[1727059400037,0.95048,2630.1,2629.6,1.58250842]
[1727059400232,0.38025,2629.7,2629.6,1.58250842]
[1727059400726,0.38027,2629.6,2629.3,3.2078]
[1727059401026,0.38029,2629.4,2629.3,1.58250842]
[1727059401226,0.38033,2629.1,2628.8,3.8843]
[1727059401438,0.38035,2629.0,2628.8,4.79030842]
[1727059401636,0.38034,2629.1,2628.8,4.79030842]
[1727059401834,40.8,2629.0,2628.8,4.79030842]
[1727059403141,40.8,2629.0,2628.9,0.38036]
[1727059403637,3.58808,2629.5,2629.1,0.38032]
[1727059403841,3.58808,2629.5,2628.9,1.58250842]
[1727059403842,0.38028,2629.5,2628.9,1.58250842]
[1727059404037,0.38027,2629.6,2629.2,0.38032]
[1727059404336,0.38027,2629.6,2628.9,1.58250842]
[1727059404337,0.38025,2629.7,2629.4,0.38028]
[1727059404542,3.2078,2629.8,2629.2,0.95081]
[1727059404729,3.2078,2629.8,2629.7,0.38025]
[1727059404932,40.8,2630.1,2629.9,0.38021]
[1727059405240,0.3802,2630.0,2629.4,3.2078]
[1727059405453,41.1802,2630.1,2629.4,4.79030842]
[1727059405644,41.1802,2630.1,2629.8,0.38023]
[1727059406042,0.38017,2630.3,2630.0,0.38019]
[1727059406338,0.38017,2630.3,2629.9,0.38022]
[1727059406339,0.38016,2630.3,2629.9,0.38022]
[1727059406536,0.38016,2630.3,2629.8,1.58250842]
[1727059406537,40.8,2630.3,2629.8,1.58250842]
[1727059406737,40.8,2630.3,2629.8,2.32060842]
[1727059406938,0.38017,2630.3,2630.0,0.38019]
[1727059407140,3.2078,2630.5,2629.8,2.32060842]
[1727059407446,0.38014,2630.5,2630.2,0.38017]
[1727059407837,0.38014,2630.5,2630.2,1.96267842]
[1727059408036,0.38015,2630.4,2630.2,1.58250842]
[1727059408446,1.82442,2630.6,2630.3,0.38015]
[1727059408637,1.4443,2630.6,2630.2,1.58250842]
[1727059408947,0.38016,2630.4,2630.2,1.58250842]
[1727059409147,41.18014,2630.5,2630.2,1.58250842]
[1727059409345,40.8,2630.5,2630.3,0.38016]
[1727059409541,40.8,2630.5,2630.2,1.96267842]
[1727059410437,40.8,2630.5,2630.3,0.38016]
[1727059410634,40.8,2630.5,2630.2,1.96267842]
[1727059411243,40.8,2630.5,2630.3,0.38016]
[1727059411548,40.8,2630.5,2630.3,0.38015]
[1727059411756,40.8,2630.5,2630.3,1.96265842]
[1727059412045,40.8,2630.5,2630.4,0.38015]
[1727059412252,3.58789,2630.8,2630.7,0.3801]
[1727059412253,3.2078,2630.8,2630.7,0.3801]
[1727059412437,4.652,2631.2,2630.4,3.2078]
[1727059412637,0.38008,2630.9,2630.6,0.38011]
[1727059412846,0.38007,2631.0,2630.6,1.58250842]
[1727059413543,0.38008,2630.9,2630.6,1.58250842]
[1727059413739,2.56,2631.0,2630.6,1.58250842]
[1727059413943,3.2078,2630.7,2630.1,3.2078]
[1727059414151,3.58791,2630.7,2630.2,0.38018]
[1727059414349,0.38013,2630.6,2630.1,4.79030842]
[1727059414550,0.38013,2630.6,2630.2,0.38017]
[1727059414943,0.38013,2630.6,2630.2,1.96267842]
[1727059415542,5.7678,2631.0,2630.2,1.58250842]
[1727059415844,5.7678,2631.0,2630.4,0.38014]
[1727059415845,0.38009,2630.8,2630.4,0.38014]
[1727059416245,0.38009,2630.8,2630.4,1.96264842]
[1727059416549,0.38012,2630.6,2630.4,1.58250842]
[1727059416750,0.38011,2630.7,2630.4,1.58250842]
[1727059417350,0.38013,2630.6,2630.4,1.58250842]
[1727059417546,5.95566396,2630.7,2629.8,3.9459]
[1727059417752,0.38015,2630.4,2630.0,0.3802]
[1727059417943,0.38015,2630.4,2629.8,5.52840842]
[1727059418342,0.38014,2630.5,2630.1,0.38018]
[1727059418750,0.38014,2630.5,2630.1,1.96268842]
[1727059418946,5.95566396,2630.7,2630.1,1.58250842]
[1727059419263,0.38015,2630.4,2630.1,1.58250842]
[1727059419647,0.38015,2630.4,2630.1,1.96269842]
[1727059419954,5.95566396,2630.7,2630.1,1.96269842]
[1727059419955,0.38014,2630.5,2630.1,1.96269842]
[1727059420248,6.90595396,2630.7,2630.1,1.58250842]
[1727059420553,5.95566396,2630.7,2630.1,1.96269842]
[1727059420759,0.38014,2630.5,2630.1,1.96268842]
[1727059421050,5.95566396,2630.7,2630.2,0.38017]
[1727059421051,0.38012,2630.6,2630.2,0.38017]
[1727059421245,3.39566396,2630.7,2630.2,0.38017]
[1727059421442,0.38013,2630.6,2630.2,1.96267842]
[1727059421853,0.38013,2630.6,2630.2,1.58250842]
[1727059422047,0.38013,2630.6,2630.2,1.96267842]
[1727059424563,0.38014,2630.5,2630.2,1.58250842]
[1727059424852,0.38014,2630.5,2630.2,1.96267842]
[1727059425260,3.39983554,2630.7,2630.2,1.58250842]
[1727059425445,0.38012,2630.6,2630.2,1.96266842]
[1727059425645,0.38012,2630.6,2630.2,1.58250842]
[1727059425850,0.38012,2630.6,2630.2,1.96267842]
[1727059426055,3.2078,2630.7,2630.6,0.38012]
[1727059426250,3.2078,2630.7,2630.2,3.2829623]
[1727059426458,3.2078,2630.7,2630.5,0.38013]
[1727059426767,3.2078,2630.7,2630.2,3.2829623]
[1727059427058,3.2078,2630.7,2630.4,0.38014]
[1727059427462,3.2078,2630.7,2630.4,1.96264842]
[1727059427658,3.2078,2630.7,2630.5,0.38012]
[1727059427858,3.2078,2630.7,2630.4,1.96264842]
[1727059428058,3.2078,2630.7,2630.5,0.38013]
[1727059428559,3.2078,2630.7,2630.5,1.96263842]
[1727059430859,3.2078,2630.7,2630.6,0.38012]
[1727059431252,3.2078,2630.7,2630.6,1.96262842]
[1727059432963,2.08,2631.0,2630.8,0.38008]
[1727059433259,2.46006,2631.0,2630.8,0.38008]
[1727059433461,2.46006,2631.0,2630.8,1.96258842]
[1727059434451,2.08,2631.2,2630.9,3.8008]
[1727059434658,2.45999,2631.5,2631.3,0.38001]
[1727059434858,2.08,2631.5,2631.3,1.96251842]
[1727059435055,2.08,2631.5,2631.3,1.58250842]
[1727059435252,2.45997,2631.7,2631.4,0.37999]
[1727059435456,0.37998,2631.6,2631.3,1.96250842]
[1727059435658,2.45997,2631.7,2631.4,0.38]
[1727059435957,2.08,2631.7,2631.3,1.58250842]
[1727059436158,0.37998,2631.6,2631.3,1.58250842]
[1727059436457,2.08,2631.5,2631.3,1.58250842]
[1727059436657,2.08,2631.5,2631.3,1.96251842]
[1727059436862,2.08,2631.5,2631.4,0.38]
[1727059437057,2.08,2631.5,2631.4,1.96250842]
[1727059437650,2.08,2631.5,2631.4,1.58250842]
[1727059437853,2.08,2631.5,2631.4,1.96250842]
[1727059438657,2.08,2631.8,2631.5,0.37998]
[1727059439063,2.08,2631.8,2631.5,1.96248842]